[Event "Titled Tuesday Blitz February 07 Early 2023"]
[White "Mesa Cruz, Juan Carlos"]
[Black "Rozman, Levy"]
[WhiteFideId "6423400"]
[BlackFideId "2039877"]
[WhiteElo "2122"]
[BlackElo "2322"]
[Result "1/2-1/2"]
[Round "01"]
[TimeControl "180+2"]
[Date "2023.02.07"]
[WhiteClock "0:00:20"]
[BlackClock "0:00:12"]

1. e4 {[%clk 0:02:57]}  e6 {[%clk 0:02:59]} 2. Qe2 {[%clk 0:02:57]}  d5 {[%clk 0:03:00]} 3. exd5 {[%clk 0:02:57]}  Qxd5 {[%clk 0:03:01]} 4. Nc3 {[%clk 0:02:57]}  Qa5 {[%clk 0:03:01]} 5. Nf3 {[%clk 0:02:57]}  Nf6 {[%clk 0:03:02]} 6. g3 {[%clk 0:02:57]}  Bb4 {[%clk 0:03:03]} 7. Bg2 {[%clk 0:02:56]}  O-O {[%clk 0:03:03]} 8. O-O {[%clk 0:02:56]}  Nc6 {[%clk 0:03:04]} 9. a3 {[%clk 0:02:52]}  Re8 {[%clk 0:03:03]} 10. Na2 {[%clk 0:02:39]}  Bf8 {[%clk 0:03:02]} 11. d4 {[%clk 0:02:36]}  e5 {[%clk 0:02:59]} 12. Bd2 {[%clk 0:02:35]}  Qb6 {[%clk 0:02:52]} 13. dxe5 {[%clk 0:02:26]}  Ng4 {[%clk 0:02:52]} 14. Bc3 {[%clk 0:02:22]}  Bd6 {[%clk 0:02:45]} 15. Nb4 {[%clk 0:02:13]}  Ncxe5 {[%clk 0:02:39]} 16. Nd5 {[%clk 0:01:58]}  Qc5 {[%clk 0:02:35]} 17. Nxe5 {[%clk 0:01:56]}  Nxe5 {[%clk 0:02:31]} 18. b4 {[%clk 0:01:45]}  Qc4 {[%clk 0:02:27]} 19. Qxc4 {[%clk 0:01:37]}  Nxc4 {[%clk 0:02:27]} 20. Rfe1 {[%clk 0:01:37]}  Be6 {[%clk 0:02:22]} 21. Ne3 {[%clk 0:01:35]}  Nb6 {[%clk 0:02:20]} 22. Bxb7 {[%clk 0:01:34]}  Rab8 {[%clk 0:02:21]} 23. Bc6 {[%clk 0:01:34]}  Rf8 {[%clk 0:02:19]} 24. f4 {[%clk 0:01:33]}  Nc4 {[%clk 0:02:08]} 25. Nxc4 {[%clk 0:01:30]}  Bxc4 {[%clk 0:02:09]} 26. Re4 {[%clk 0:01:28]}  Ba6 {[%clk 0:02:06]} 27. Be5 {[%clk 0:01:23]}  Bb7 {[%clk 0:01:56]} 28. Bxb7 {[%clk 0:01:21]}  Rxb7 {[%clk 0:01:57]} 29. Bxd6 {[%clk 0:01:22]}  cxd6 {[%clk 0:01:58]} 30. Rd1 {[%clk 0:01:22]}  Rb6 {[%clk 0:01:47]} 31. Red4 {[%clk 0:01:21]}  Rc6 {[%clk 0:01:48]} 32. R1d2 {[%clk 0:01:18]}  Rc3 {[%clk 0:01:46]} 33. a4 {[%clk 0:01:16]}  Ra3 {[%clk 0:01:42]} 34. a5 {[%clk 0:01:15]}  Ra4 {[%clk 0:01:42]} 35. Rxd6 {[%clk 0:01:14]}  Rxb4 {[%clk 0:01:42]} 36. Rd7 {[%clk 0:01:14]}  h5 {[%clk 0:01:37]} 37. Rxa7 {[%clk 0:01:14]}  h4 {[%clk 0:01:38]} 38. Kg2 {[%clk 0:01:13]}  Ra4 {[%clk 0:01:35]} 39. a6 {[%clk 0:01:10]}  Kh7 {[%clk 0:01:35]} 40. Rdd7 {[%clk 0:01:10]}  Kg6 {[%clk 0:01:35]} 41. Rd6+ {[%clk 0:01:10]}  f6 {[%clk 0:01:35]} 42. Rdd7 {[%clk 0:01:10]}  Kf5 {[%clk 0:01:35]} 43. Rxg7 {[%clk 0:01:10]}  Rh8 {[%clk 0:01:36]} 44. g4+ {[%clk 0:01:03]}  Kxf4 {[%clk 0:01:36]} 45. Raf7 {[%clk 0:00:59]}  h3+ {[%clk 0:01:36]} 46. Kf2 {[%clk 0:00:59]}  Rxa6 {[%clk 0:01:36]} 47. g5 {[%clk 0:00:59]}  f5 {[%clk 0:01:36]} 48. Rf6 {[%clk 0:00:55]}  Ra2 {[%clk 0:01:37]} 49. Rgf7 {[%clk 0:00:53]}  Rxc2+ {[%clk 0:01:36]} 50. Kg1 {[%clk 0:00:54]}  Rc5 {[%clk 0:01:37]} 51. g6 {[%clk 0:00:52]}  Rb8 {[%clk 0:01:36]} 52. Re6 {[%clk 0:00:45]}  Rb1+ {[%clk 0:01:29]} 53. Kf2 {[%clk 0:00:45]}  Rh1 {[%clk 0:01:23]} 54. Ke2 {[%clk 0:00:35]}  Rxh2+ {[%clk 0:01:22]} 55. Kd3 {[%clk 0:00:34]}  Rg2 {[%clk 0:01:19]} 56. g7 {[%clk 0:00:35]}  Rd5+ {[%clk 0:01:13]} 57. Kc4 {[%clk 0:00:34]}  Rd1 {[%clk 0:01:08]} 58. Rh6 {[%clk 0:00:22]}  Rg3 {[%clk 0:01:02]} 59. Rf8 {[%clk 0:00:20]}  Rxg7 {[%clk 0:01:01]} 60. Rxh3 {[%clk 0:00:20]}  Rc7+ {[%clk 0:01:02]} 61. Kb5 {[%clk 0:00:20]}  Rb1+ {[%clk 0:01:02]} 62. Ka6 {[%clk 0:00:20]}  Rc2 {[%clk 0:01:01]} 63. Ra3 {[%clk 0:00:20]}  Rc4 {[%clk 0:00:59]} 64. Ra5 {[%clk 0:00:20]}  Rc6+ {[%clk 0:00:37]} 65. Ka7 {[%clk 0:00:21]}  Rc7+ {[%clk 0:00:37]} 66. Ka8 {[%clk 0:00:20]}  Ke4 {[%clk 0:00:34]} 67. Rfxf5 {[%clk 0:00:19]}  Kd4 {[%clk 0:00:34]} 68. Rf4+ {[%clk 0:00:19]}  Kc3 {[%clk 0:00:35]} 69. Rff5 {[%clk 0:00:19]}  Kd4 {[%clk 0:00:25]} 70. Rfb5 {[%clk 0:00:19]}  Rh1 {[%clk 0:00:23]} 71. Ra4+ {[%clk 0:00:19]}  Kc3 {[%clk 0:00:23]} 72. Rb7 {[%clk 0:00:19]}  Rh8+ {[%clk 0:00:21]} 73. Ka7 {[%clk 0:00:19]}  Rcc8 {[%clk 0:00:21]} 74. Ra3+ {[%clk 0:00:18]}  Kc2 {[%clk 0:00:21]} 75. Ra2+ {[%clk 0:00:19]}  Kc3 {[%clk 0:00:22]} 76. Ra3+ {[%clk 0:00:19]}  Kc4 {[%clk 0:00:22]} 77. Ra4+ {[%clk 0:00:19]}  Kc5 {[%clk 0:00:23]} 78. Ra5+ {[%clk 0:00:20]}  Kc4 {[%clk 0:00:17]} 79. Ra4+ {[%clk 0:00:20]}  Kc3 {[%clk 0:00:12]} 80. Ra3+ {[%clk 0:00:20]} 1/2-1/2


[Site "https://www.chess.com"]

[Event "Titled Tuesday Blitz February 07 Early 2023"]
[White "Csonka, Balazs"]
[Black "Zacurdajev, Dmitry"]
[WhiteFideId "742910"]
[BlackFideId "4196309"]
[WhiteElo "2496"]
[BlackElo "2273"]
[Result "0-1"]
[Round "01"]
[TimeControl "180+2"]
[Date "2023.02.07"]
[WhiteClock "0:00:01"]
[BlackClock "0:00:03"]

1. e4 {[%clk 0:02:51]}  c6 {[%clk 0:02:59]} 2. d4 {[%clk 0:02:46]}  d5 {[%clk 0:03:00]} 3. Nd2 {[%clk 0:02:44]}  dxe4 {[%clk 0:03:00]} 4. Nxe4 {[%clk 0:02:45]}  Nf6 {[%clk 0:03:00]} 5. Nxf6+ {[%clk 0:02:44]}  exf6 {[%clk 0:03:01]} 6. c3 {[%clk 0:02:42]}  Bd6 {[%clk 0:03:02]} 7. Bd3 {[%clk 0:02:42]}  Na6 {[%clk 0:03:02]} 8. Ne2 {[%clk 0:02:39]}  Nc7 {[%clk 0:03:01]} 9. O-O {[%clk 0:02:36]}  h5 {[%clk 0:02:42]} 10. Re1 {[%clk 0:02:05]}  Kf8 {[%clk 0:02:41]} 11. Bf4 {[%clk 0:01:53]}  h4 {[%clk 0:02:33]} 12. Qd2 {[%clk 0:01:23]}  h3 {[%clk 0:02:25]} 13. g3 {[%clk 0:01:23]}  Ne6 {[%clk 0:01:58]} 14. Be3 {[%clk 0:01:00]}  Ng5 {[%clk 0:01:47]} 15. Bxg5 {[%clk 0:00:59]}  fxg5 {[%clk 0:01:48]} 16. f4 {[%clk 0:00:47]}  Qf6 {[%clk 0:00:48]} 17. Rf1 {[%clk 0:00:38]}  g4 {[%clk 0:00:48]} 18. f5 {[%clk 0:00:32]}  Bd7 {[%clk 0:00:33]} 19. Rf2 {[%clk 0:00:31]}  Re8 {[%clk 0:00:28]} 20. Raf1 {[%clk 0:00:32]}  c5 {[%clk 0:00:27]} 21. Bc4 {[%clk 0:00:18]}  Bc6 {[%clk 0:00:14]} 22. Nf4 {[%clk 0:00:13]}  cxd4 {[%clk 0:00:12]} 23. Ng6+ {[%clk 0:00:09]}  fxg6 {[%clk 0:00:12]} 24. fxg6 {[%clk 0:00:09]}  Bf3 {[%clk 0:00:13]} 25. Bd5 {[%clk 0:00:08]}  dxc3 {[%clk 0:00:11]} 26. bxc3 {[%clk 0:00:02]}  Bc5 {[%clk 0:00:11]} 27. Bxf3 {[%clk 0:00:02]}  gxf3 {[%clk 0:00:10]} 28. Qd7 {[%clk 0:00:03]}  Bxf2+ {[%clk 0:00:09]} 29. Kxf2 {[%clk 0:00:02]}  Re2+ {[%clk 0:00:09]} 30. Kg1 {[%clk 0:00:02]}  Re7 {[%clk 0:00:02]} 31. Qd8+ {[%clk 0:00:02]}  Re8 {[%clk 0:00:02]} 32. Qd3 {[%clk 0:00:03]}  Kg8 {[%clk 0:00:02]} 33. Rxf3 {[%clk 0:00:03]}  Qb6+ {[%clk 0:00:03]} 34. Kf1 {[%clk 0:00:03]}  Qe6 {[%clk 0:00:03]} 35. Qd2 {[%clk 0:00:02]}  Qe7 {[%clk 0:00:02]} 36. Rf7 {[%clk 0:00:02]}  Qe6 {[%clk 0:00:02]} 37. Rf4 {[%clk 0:00:02]}  Rh5 {[%clk 0:00:02]} 38. g4 {[%clk 0:00:01]}  Rd5 {[%clk 0:00:03]} 39. Qf2 {[%clk 0:00:01]}  Qd6 {[%clk 0:00:03]} 40. Rf7 {[%clk 0:00:01]}  Rd1+ {[%clk 0:00:03]} 0-1


[Site "https://www.chess.com"]

[Event "Titled Tuesday Blitz February 07 Early 2023"]
[White "Melikhov, Evgeny V."]
[Black "Szpar, Milosz"]
[WhiteFideId "4122046"]
[BlackFideId "1184989"]
[WhiteElo "2269"]
[BlackElo "2447"]
[Result "0-1"]
[Round "01"]
[TimeControl "180+2"]
[Date "2023.02.07"]
[WhiteClock "0:00:40"]
[BlackClock "0:01:01"]

1. d4 {[%clk 0:02:24]}  Nf6 {[%clk 0:02:58]} 2. c4 {[%clk 0:02:24]}  c5 {[%clk 0:02:58]} 3. d5 {[%clk 0:02:24]}  e6 {[%clk 0:02:55]} 4. Nc3 {[%clk 0:02:23]}  exd5 {[%clk 0:02:56]} 5. cxd5 {[%clk 0:02:23]}  d6 {[%clk 0:02:56]} 6. Nf3 {[%clk 0:02:22]}  g6 {[%clk 0:02:55]} 7. h3 {[%clk 0:02:22]}  Bg7 {[%clk 0:02:55]} 8. e4 {[%clk 0:02:23]}  O-O {[%clk 0:02:55]} 9. Be3 {[%clk 0:02:23]}  Re8 {[%clk 0:02:48]} 10. Bd3 {[%clk 0:02:21]}  Nxe4 {[%clk 0:02:24]} 11. Nxe4 {[%clk 0:02:14]}  f5 {[%clk 0:02:24]} 12. Neg5 {[%clk 0:02:11]}  f4 {[%clk 0:02:21]} 13. Ne6 {[%clk 0:02:10]}  Bxe6 {[%clk 0:02:20]} 14. dxe6 {[%clk 0:02:10]}  fxe3 {[%clk 0:02:20]} 15. O-O {[%clk 0:02:10]}  Nc6 {[%clk 0:02:17]} 16. Bc4 {[%clk 0:02:02]}  Ne7 {[%clk 0:02:09]} 17. Bd5 {[%clk 0:01:58]}  exf2+ {[%clk 0:02:01]} 18. Rxf2 {[%clk 0:01:57]}  Rf8 {[%clk 0:02:01]} 19. Re2 {[%clk 0:01:45]}  Rb8 {[%clk 0:01:58]} 20. Qd2 {[%clk 0:01:29]}  b5 {[%clk 0:01:54]} 21. Rd1 {[%clk 0:01:29]}  Qb6 {[%clk 0:01:49]} 22. Kh1 {[%clk 0:01:26]}  c4 {[%clk 0:01:46]} 23. Ng5 {[%clk 0:01:17]}  Bh6 {[%clk 0:01:42]} 24. h4 {[%clk 0:01:10]}  Qc5 {[%clk 0:01:37]} 25. Qd4 {[%clk 0:01:07]}  Rf1+ {[%clk 0:01:32]} 26. Kh2 {[%clk 0:01:05]}  Rxd1 {[%clk 0:01:29]} 27. Qf6 {[%clk 0:01:04]}  Qg1+ {[%clk 0:01:23]} 28. Kh3 {[%clk 0:01:03]}  Rd3+ {[%clk 0:01:20]} 29. Nf3 {[%clk 0:00:57]}  Nxd5 {[%clk 0:01:08]} 30. Qf7+ {[%clk 0:00:57]}  Kh8 {[%clk 0:01:08]} 31. e7 {[%clk 0:00:58]}  Nf4+ {[%clk 0:01:05]} 32. Kg3 {[%clk 0:00:40]}  Nxe2+ {[%clk 0:01:01]} 0-1


[Site "https://www.chess.com"]

[Event "Titled Tuesday Blitz February 07 Early 2023"]
[White "Kostiukov, Alexandr"]
[Black "Vaishali, Rameshbabu"]
[WhiteFideId "14108100"]
[BlackFideId "5091756"]
[WhiteElo "2271"]
[BlackElo "2418"]
[Result "0-1"]
[Round "01"]
[TimeControl "180+2"]
[Date "2023.02.07"]
[WhiteClock "0:00:05"]
[BlackClock "0:00:52"]

1. g3 {[%clk 0:02:55]}  e5 {[%clk 0:02:58]} 2. c4 {[%clk 0:02:55]}  d6 {[%clk 0:02:58]} 3. Bg2 {[%clk 0:02:55]}  Be7 {[%clk 0:02:58]} 4. Nc3 {[%clk 0:02:52]}  f5 {[%clk 0:02:57]} 5. Nf3 {[%clk 0:02:51]}  Nf6 {[%clk 0:02:51]} 6. O-O {[%clk 0:02:51]}  O-O {[%clk 0:02:42]} 7. d4 {[%clk 0:02:50]}  e4 {[%clk 0:02:38]} 8. Ng5 {[%clk 0:02:44]}  h6 {[%clk 0:02:28]} 9. Nh3 {[%clk 0:02:43]}  Be6 {[%clk 0:02:29]} 10. Nf4 {[%clk 0:02:21]}  Bxc4 {[%clk 0:02:25]} 11. Ng6 {[%clk 0:02:21]}  Re8 {[%clk 0:02:24]} 12. Nxe7+ {[%clk 0:02:21]}  Qxe7 {[%clk 0:02:23]} 13. d5 {[%clk 0:02:20]}  Nbd7 {[%clk 0:02:22]} 14. Be3 {[%clk 0:02:03]}  Nb6 {[%clk 0:02:18]} 15. b3 {[%clk 0:01:50]}  Nbxd5 {[%clk 0:02:14]} 16. bxc4 {[%clk 0:01:35]}  Nxc3 {[%clk 0:02:12]} 17. Qc2 {[%clk 0:01:32]}  Nxe2+ {[%clk 0:01:39]} 18. Qxe2 {[%clk 0:01:31]}  Ng4 {[%clk 0:01:39]} 19. Bd4 {[%clk 0:01:24]}  Ne5 {[%clk 0:01:38]} 20. Rab1 {[%clk 0:01:19]}  b6 {[%clk 0:01:35]} 21. f3 {[%clk 0:01:08]}  exf3 {[%clk 0:01:25]} 22. Bxf3 {[%clk 0:01:07]}  Nxf3+ {[%clk 0:01:24]} 23. Qxf3 {[%clk 0:01:08]}  Qe4 {[%clk 0:01:15]} 24. Qxe4 {[%clk 0:00:48]}  Rxe4 {[%clk 0:01:14]} 25. Rbd1 {[%clk 0:00:44]}  g6 {[%clk 0:01:14]} 26. Rfe1 {[%clk 0:00:37]}  Rae8 {[%clk 0:01:14]} 27. Rxe4 {[%clk 0:00:36]}  Rxe4 {[%clk 0:01:11]} 28. Kf2 {[%clk 0:00:36]}  Kf7 {[%clk 0:01:08]} 29. Kf3 {[%clk 0:00:36]}  g5 {[%clk 0:01:04]} 30. h3 {[%clk 0:00:33]}  h5 {[%clk 0:01:00]} 31. Rd3 {[%clk 0:00:20]}  Kg6 {[%clk 0:00:57]} 32. Be3 {[%clk 0:00:05]}  Rxc4 {[%clk 0:00:55]} 33. Ra3 {[%clk 0:00:05]}  a5 {[%clk 0:00:54]} 34. Rb3 {[%clk 0:00:05]}  Rc2 {[%clk 0:00:52]} 35. a3 {[%clk 0:00:05]}  g4+ {[%clk 0:00:50]} 36. hxg4 {[%clk 0:00:06]}  hxg4+ {[%clk 0:00:51]} 37. Kf4 {[%clk 0:00:04]}  Rc4+ {[%clk 0:00:52]} 38. Bd4 {[%clk 0:00:04]}  Rxd4+ {[%clk 0:00:52]} 39. Ke3 {[%clk 0:00:05]}  Re4+ {[%clk 0:00:52]} 0-1


[Site "https://www.chess.com"]

[Event "Titled Tuesday Blitz February 07 Early 2023"]
[White "Dzida, Kamil"]
[Black "Papasimakopoulos, Alexandros"]
[WhiteFideId "21828652"]
[BlackFideId "4244125"]
[WhiteElo "2352"]
[BlackElo "2401"]
[Result "1-0"]
[Round "01"]
[TimeControl "180+2"]
[Date "2023.02.07"]
[WhiteClock "0:00:16"]
[BlackClock "0:00:01"]

1. e4 {[%clk 0:03:00]}  e6 {[%clk 0:02:48]} 2. Qe2 {[%clk 0:02:59]}  c5 {[%clk 0:02:45]} 3. g3 {[%clk 0:02:53]}  Nc6 {[%clk 0:02:41]} 4. Nf3 {[%clk 0:02:51]}  g6 {[%clk 0:02:40]} 5. Bg2 {[%clk 0:02:50]}  Bg7 {[%clk 0:02:41]} 6. O-O {[%clk 0:02:50]}  Nge7 {[%clk 0:02:41]} 7. d3 {[%clk 0:02:45]}  O-O {[%clk 0:02:34]} 8. c3 {[%clk 0:02:43]}  d5 {[%clk 0:02:34]} 9. e5 {[%clk 0:02:43]}  b5 {[%clk 0:02:25]} 10. h4 {[%clk 0:02:41]}  h6 {[%clk 0:02:24]} 11. Bf4 {[%clk 0:02:38]}  a5 {[%clk 0:02:24]} 12. Nh2 {[%clk 0:02:20]}  b4 {[%clk 0:02:20]} 13. Ng4 {[%clk 0:02:19]}  Nf5 {[%clk 0:02:18]} 14. Ne3 {[%clk 0:01:50]}  Nce7 {[%clk 0:02:02]} 15. Nxf5 {[%clk 0:01:41]}  Nxf5 {[%clk 0:02:03]} 16. Bh3 {[%clk 0:01:33]}  a4 {[%clk 0:02:00]} 17. a3 {[%clk 0:01:31]}  Qe7 {[%clk 0:01:48]} 18. Nd2 {[%clk 0:01:26]}  bxc3 {[%clk 0:01:48]} 19. bxc3 {[%clk 0:01:26]}  Ba6 {[%clk 0:01:46]} 20. Bxf5 {[%clk 0:01:08]}  exf5 {[%clk 0:01:41]} 21. Qe3 {[%clk 0:01:06]}  Kh7 {[%clk 0:01:38]} 22. Rfe1 {[%clk 0:01:01]}  d4 {[%clk 0:01:35]} 23. cxd4 {[%clk 0:00:53]}  cxd4 {[%clk 0:01:36]} 24. Qxd4 {[%clk 0:00:49]}  Rfd8 {[%clk 0:01:33]} 25. Qxa4 {[%clk 0:00:46]}  Bxd3 {[%clk 0:01:30]} 26. Qb4 {[%clk 0:00:44]}  Qe6 {[%clk 0:01:26]} 27. Rac1 {[%clk 0:00:34]}  Rdb8 {[%clk 0:01:24]} 28. Qd6 {[%clk 0:00:32]}  Rd8 {[%clk 0:01:11]} 29. Qxe6 {[%clk 0:00:29]}  fxe6 {[%clk 0:01:12]} 30. Rc7 {[%clk 0:00:29]}  Kg8 {[%clk 0:01:12]} 31. Rec1 {[%clk 0:00:21]}  Bf8 {[%clk 0:00:28]} 32. R1c6 {[%clk 0:00:16]}  Re8 {[%clk 0:00:23]} 33. Rb6 {[%clk 0:00:16]}  Re7 {[%clk 0:00:20]} 34. Rxe7 {[%clk 0:00:15]}  Bxe7 {[%clk 0:00:20]} 35. Rxe6 {[%clk 0:00:16]}  Kf7 {[%clk 0:00:19]} 36. Rb6 {[%clk 0:00:16]}  g5 {[%clk 0:00:19]} 37. hxg5 {[%clk 0:00:15]}  hxg5 {[%clk 0:00:19]} 38. e6+ {[%clk 0:00:16]}  Kg6 {[%clk 0:00:17]} 39. Be3 {[%clk 0:00:16]}  Rxa3 {[%clk 0:00:14]} 40. Rb7 {[%clk 0:00:17]}  Kf6 {[%clk 0:00:13]} 41. Bd4+ {[%clk 0:00:15]}  Kxe6 {[%clk 0:00:13]} 42. Rxe7+ {[%clk 0:00:15]}  Kd5 {[%clk 0:00:13]} 43. Be3 {[%clk 0:00:15]}  f4 {[%clk 0:00:06]} 44. gxf4 {[%clk 0:00:16]}  gxf4 {[%clk 0:00:07]} 45. Bxf4 {[%clk 0:00:16]}  Bb5 {[%clk 0:00:06]} 46. Re3 {[%clk 0:00:16]}  Ra2 {[%clk 0:00:05]} 47. Nf3 {[%clk 0:00:16]}  Bc6 {[%clk 0:00:04]} 48. Re5+ {[%clk 0:00:15]}  Kc4 {[%clk 0:00:02]} 49. Re3 {[%clk 0:00:15]}  Ra4 {[%clk 0:00:01]} 50. Ne5+ {[%clk 0:00:16]} 1-0


[Site "https://www.chess.com"]

[Event "Titled Tuesday Blitz February 07 Early 2023"]
[White "Ajay, Karthikeyan"]
[Black "Buscar, Michael"]
[WhiteFideId "35011685"]
[BlackFideId "2603616"]
[WhiteElo "2454"]
[BlackElo "2041"]
[Result "1-0"]
[Round "01"]
[TimeControl "180+2"]
[Date "2023.02.07"]
[WhiteClock "0:00:33"]
[BlackClock "0:00:02"]

1. d4 {[%clk 0:02:52]}  d5 {[%clk 0:02:54]} 2. c4 {[%clk 0:02:51]}  e6 {[%clk 0:02:51]} 3. Nc3 {[%clk 0:02:42]}  Nf6 {[%clk 0:02:50]} 4. cxd5 {[%clk 0:02:42]}  exd5 {[%clk 0:02:50]} 5. Bg5 {[%clk 0:02:41]}  Be7 {[%clk 0:02:43]} 6. e3 {[%clk 0:02:42]}  c6 {[%clk 0:02:41]} 7. Bd3 {[%clk 0:02:42]}  Na6 {[%clk 0:02:42]} 8. a3 {[%clk 0:02:40]}  Nc7 {[%clk 0:02:41]} 9. Nf3 {[%clk 0:02:39]}  Ne6 {[%clk 0:02:41]} 10. Bh4 {[%clk 0:02:37]}  O-O {[%clk 0:02:40]} 11. Qc2 {[%clk 0:02:37]}  g6 {[%clk 0:02:27]} 12. b4 {[%clk 0:02:34]}  Ng7 {[%clk 0:02:23]} 13. Ne5 {[%clk 0:02:31]}  Bf5 {[%clk 0:02:17]} 14. Bg5 {[%clk 0:02:06]}  a6 {[%clk 0:02:06]} 15. h4 {[%clk 0:02:02]}  Ne4 {[%clk 0:01:24]} 16. Bxe4 {[%clk 0:01:51]}  Bxe4 {[%clk 0:01:21]} 17. Nxe4 {[%clk 0:01:50]}  dxe4 {[%clk 0:01:21]} 18. Bh6 {[%clk 0:01:39]}  f5 {[%clk 0:01:12]} 19. h5 {[%clk 0:01:35]}  g5 {[%clk 0:00:52]} 20. Qc4+ {[%clk 0:01:17]}  Qd5 {[%clk 0:00:52]} 21. Qxd5+ {[%clk 0:01:18]}  cxd5 {[%clk 0:00:52]} 22. Rc1 {[%clk 0:01:17]}  Rfc8 {[%clk 0:00:50]} 23. Kd2 {[%clk 0:01:13]}  Ne6 {[%clk 0:00:37]} 24. Nd7 {[%clk 0:01:13]}  Bd8 {[%clk 0:00:31]} 25. g4 {[%clk 0:01:06]}  f4 {[%clk 0:00:18]} 26. Nc5 {[%clk 0:01:04]}  Nxc5 {[%clk 0:00:13]} 27. Rxc5 {[%clk 0:01:04]}  Rxc5 {[%clk 0:00:13]} 28. bxc5 {[%clk 0:01:04]}  f3 {[%clk 0:00:14]} 29. Rb1 {[%clk 0:01:02]}  Ra7 {[%clk 0:00:10]} 30. a4 {[%clk 0:00:48]}  Kf7 {[%clk 0:00:10]} 31. Kc3 {[%clk 0:00:39]}  Ba5+ {[%clk 0:00:08]} 32. Kc2 {[%clk 0:00:39]}  Bd8 {[%clk 0:00:09]} 33. a5 {[%clk 0:00:38]}  Kg8 {[%clk 0:00:08]} 34. c6 {[%clk 0:00:34]}  bxc6 {[%clk 0:00:08]} 35. Rb8 {[%clk 0:00:34]}  Rd7 {[%clk 0:00:08]} 36. Bxg5 {[%clk 0:00:35]}  Kf7 {[%clk 0:00:05]} 37. Rxd8 {[%clk 0:00:36]}  Rb7 {[%clk 0:00:05]} 38. Rh8 {[%clk 0:00:34]}  Ke6 {[%clk 0:00:04]} 39. Rc8 {[%clk 0:00:33]}  Kd7 {[%clk 0:00:03]} 40. Rd8+ {[%clk 0:00:33]}  Ke6 {[%clk 0:00:03]} 41. Ra8 {[%clk 0:00:34]}  Rb4 {[%clk 0:00:01]} 42. Rxa6 {[%clk 0:00:34]}  Kd6 {[%clk 0:00:01]} 43. Ra7 {[%clk 0:00:32]}  Ra4 {[%clk 0:00:02]} 44. Be7+ {[%clk 0:00:32]}  Ke6 {[%clk 0:00:02]} 45. Kb3 {[%clk 0:00:33]}  Ra1 {[%clk 0:00:02]} 46. Bh4 {[%clk 0:00:33]} 1-0


[Site "https://www.chess.com"]

[Event "Titled Tuesday Blitz February 07 Early 2023"]
[White "Dehtiarov, Roman"]
[Black "Sowul, Bartosz"]
[WhiteFideId "14186640"]
[BlackFideId "1137590"]
[WhiteElo "2289"]
[BlackElo "2269"]
[Result "0-1"]
[Round "01"]
[TimeControl "180+2"]
[Date "2023.02.07"]
[WhiteClock "0:00:03"]
[BlackClock "0:00:16"]

1. e4 {[%clk 0:03:00]}  c5 {[%clk 0:02:59]} 2. Nc3 {[%clk 0:03:00]}  d6 {[%clk 0:02:56]} 3. f4 {[%clk 0:03:01]}  g6 {[%clk 0:02:56]} 4. Nf3 {[%clk 0:03:01]}  Bg7 {[%clk 0:02:57]} 5. Bb5+ {[%clk 0:03:02]}  Bd7 {[%clk 0:02:58]} 6. Bxd7+ {[%clk 0:03:03]}  Qxd7 {[%clk 0:02:55]} 7. O-O {[%clk 0:03:03]}  Nc6 {[%clk 0:02:54]} 8. d3 {[%clk 0:03:04]}  e6 {[%clk 0:02:53]} 9. Qe1 {[%clk 0:03:04]}  Nge7 {[%clk 0:02:52]} 10. Qf2 {[%clk 0:03:03]}  O-O {[%clk 0:02:50]} 11. Be3 {[%clk 0:03:03]}  b6 {[%clk 0:02:46]} 12. Rad1 {[%clk 0:03:02]}  e5 {[%clk 0:02:42]} 13. Qh4 {[%clk 0:02:54]}  f5 {[%clk 0:02:28]} 14. Nd5 {[%clk 0:02:28]}  Nxd5 {[%clk 0:02:22]} 15. exd5 {[%clk 0:02:29]}  Nd4 {[%clk 0:02:22]} 16. Bxd4 {[%clk 0:02:14]}  cxd4 {[%clk 0:02:18]} 17. c4 {[%clk 0:02:11]}  dxc3 {[%clk 0:02:11]} 18. bxc3 {[%clk 0:02:12]}  Bf6 {[%clk 0:02:05]} 19. Qf2 {[%clk 0:01:58]}  exf4 {[%clk 0:02:01]} 20. c4 {[%clk 0:01:57]}  Rae8 {[%clk 0:01:59]} 21. Nd4 {[%clk 0:01:41]}  Bxd4 {[%clk 0:01:54]} 22. Qxd4 {[%clk 0:01:42]}  g5 {[%clk 0:01:54]} 23. h4 {[%clk 0:01:37]}  h6 {[%clk 0:01:52]} 24. a4 {[%clk 0:01:01]}  Re3 {[%clk 0:01:42]} 25. a5 {[%clk 0:00:56]}  bxa5 {[%clk 0:01:39]} 26. Ra1 {[%clk 0:00:54]}  a4 {[%clk 0:01:36]} 27. Ra2 {[%clk 0:00:46]}  Rfe8 {[%clk 0:01:28]} 28. Qf6 {[%clk 0:00:28]}  Qg7 {[%clk 0:01:24]} 29. Qxd6 {[%clk 0:00:20]}  Rxd3 {[%clk 0:01:10]} 30. Rxa4 {[%clk 0:00:16]}  f3 {[%clk 0:01:04]} 31. gxf3 {[%clk 0:00:08]}  Rd2 {[%clk 0:00:55]} 32. Qg3 {[%clk 0:00:04]}  Qd4+ {[%clk 0:00:44]} 33. Kh1 {[%clk 0:00:04]}  f4 {[%clk 0:00:34]} 34. Qg4 {[%clk 0:00:03]}  Rf2 {[%clk 0:00:30]} 35. Rg1 {[%clk 0:00:03]}  Qd2 {[%clk 0:00:24]} 36. Qh3 {[%clk 0:00:03]}  Qe3 {[%clk 0:00:17]} 37. hxg5 {[%clk 0:00:02]}  Rxf3 {[%clk 0:00:16]} 38. gxh6+ {[%clk 0:00:01]}  Kh8 {[%clk 0:00:17]} 39. Qh2 {[%clk 0:00:01]}  Rh3 {[%clk 0:00:17]} 40. Ra2 {[%clk 0:00:01]}  Rxh2+ {[%clk 0:00:16]} 41. Rxh2 {[%clk 0:00:02]}  Qf3+ {[%clk 0:00:16]} 42. Rhg2 {[%clk 0:00:03]}  Rg8 {[%clk 0:00:16]} 43. d6 {[%clk 0:00:03]}  Rg3 {[%clk 0:00:16]} 0-1


[Site "https://www.chess.com"]

[Event "Titled Tuesday Blitz February 07 Early 2023"]
[White "Nikologorsky, Matfei"]
[Black "Nazari, Arad"]
[WhiteFideId "24102474"]
[BlackFideId "12577324"]
[WhiteElo "2182"]
[BlackElo "2367"]
[Result "1-0"]
[Round "01"]
[TimeControl "180+2"]
[Date "2023.02.07"]
[WhiteClock "0:00:42"]
[BlackClock "0:00:49"]

1. e4 {[%clk 0:03:00]}  c5 {[%clk 0:02:58]} 2. Nf3 {[%clk 0:02:57]}  d6 {[%clk 0:02:58]} 3. d4 {[%clk 0:02:57]}  cxd4 {[%clk 0:02:56]} 4. Nxd4 {[%clk 0:02:58]}  Nf6 {[%clk 0:02:56]} 5. Nc3 {[%clk 0:02:58]}  a6 {[%clk 0:02:56]} 6. h3 {[%clk 0:02:57]}  e5 {[%clk 0:02:43]} 7. Nde2 {[%clk 0:02:57]}  h5 {[%clk 0:02:25]} 8. Bg5 {[%clk 0:02:55]}  Be6 {[%clk 0:02:24]} 9. Nc1 {[%clk 0:02:53]}  Be7 {[%clk 0:02:09]} 10. Be2 {[%clk 0:02:52]}  h4 {[%clk 0:02:08]} 11. O-O {[%clk 0:02:39]}  Nc6 {[%clk 0:02:06]} 12. Nb3 {[%clk 0:02:35]}  Nd7 {[%clk 0:02:05]} 13. Bxe7 {[%clk 0:02:21]}  Qxe7 {[%clk 0:02:06]} 14. Qd2 {[%clk 0:02:21]}  Nc5 {[%clk 0:02:01]} 15. Rad1 {[%clk 0:02:14]}  Rd8 {[%clk 0:01:58]} 16. f4 {[%clk 0:02:08]}  Bxb3 {[%clk 0:01:54]} 17. axb3 {[%clk 0:02:07]}  Nd4 {[%clk 0:01:55]} 18. Bc4 {[%clk 0:01:54]}  O-O {[%clk 0:01:39]} 19. b4 {[%clk 0:01:36]}  Nce6 {[%clk 0:01:31]} 20. Nd5 {[%clk 0:01:31]}  Qd7 {[%clk 0:01:30]} 21. f5 {[%clk 0:01:27]}  b5 {[%clk 0:01:17]} 22. Ba2 {[%clk 0:01:12]}  Nc7 {[%clk 0:01:09]} 23. c3 {[%clk 0:00:50]}  Nxd5 {[%clk 0:01:01]} 24. Bxd5 {[%clk 0:00:49]}  Nc6 {[%clk 0:00:58]} 25. Qg5 {[%clk 0:00:49]}  Ne7 {[%clk 0:00:51]} 26. f6 {[%clk 0:00:43]}  Ng6 {[%clk 0:00:49]} 27. Qxg6 {[%clk 0:00:42]} 1-0


[Site "https://www.chess.com"]